Cogmind - Beta 17.1 @@@ ROGUE MODE // 2026.09.04 @ 02:25:18 Player: KN-OKO Result: Destroyed by P-60 Hacker with Gatling Laser Performance ------------- Evolutions (2) 1000 Regions Visited (4) 800 Robots Destroyed (65) 325 Value Destroyed (1611) 1611 Prototype IDs (7) 140 Alien Tech Used (0) 0 Bonus (7968) 7968 TOTAL SCORE: 11844 Bonus ------- High Alert Combat Kills 68 Prayed to X0-1V1 5000 Major X0-1V1 Interference 2700 Entered Garrisons 200 Cogmind --------- Core Integrity 0/500 Matter 150/150 Energy 100/100 System Corruption 36% Temperature Cool (38) Movement Core (50) Location -8/Garrison Parts ------- > --- POWER (1) -------- (None) > --- PROPULSION (4) --- (None) > --- UTILITY (3) ------ X0-1V1's Piety Tracker > --- WEAPON (3) ------- Katana > --- INVENTORY (5) ---- Light Ion Engine Large Storage Unit Hardened Medium Armor Plating Advanced Beam Cannon Mini Grenade Launcher Peak State ------------ > --- POWER ------------ Ion Engine > --- PROPULSION ------- Wheel Wheel Wheel > --- UTILITY ---------- Improved Heat Sink Large Storage Unit Hardened Medium Armor Plating X0-1V1's Piety Tracker > --- WEAPON ----------- Improved EM Shotgun Improved EM Shotgun Katana > --- INVENTORY -------- Light Ion Engine Heavy Ion Engine Wheel Wheel Wheel Compact Wheel Large Matter Pod Hardened Medium Armor Plating Hardened Medium Armor Plating Particle Cannon Particle Cannon Advanced Beam Cannon Advanced Beam Cannon Advanced Beam Cannon Mini Grenade Launcher [Rating: 36] Favorites ----------- Power Ion Engine Engine Ion Engine Propulsion Compact Wheel Wheel Compact Wheel Utility Large Storage Unit Device X0-1V1's Piety Tracker Storage Large Storage Unit Protection Hardened Medium Armor Plating Weapon Katana Energy Gun Improved EM Shotgun Energy Cannon Advanced Beam Cannon Ballistic Gun Light Assault Rifle Ballistic Cannon Improved Light Cannon Launcher Grenade Launcher Slashing Weapon Katana Build | -11 -10 -9 -8 -8 ------- Run | Yrd Mat Mat Mat Gar Slots Evolved 4 | . . 2 2 . Power . | . . . . . Propulsion 1 | . . . 1 . Utility 2 | . . 1 1 . Weapon 1 | . . 1 . . Parts Attached 41 | 7 3 16 4 11 Power 6 | 1 . 3 1 1 Engine 6 | 1 . 3 1 1 Core . | . . . . . Reactor . | . . . . . Propulsion 11 | 2 . 4 1 4 Treads . | . . . . . Leg . | . . . . . Wheel 11 | 2 . 4 1 4 Hover . | . . . . . Flight . | . . . . . Utility 9 | 2 3 1 2 1 Device 4 | 1 2 1 . . Storage 2 | 1 1 . . . Processor . | . . . . . Hackware . | . . . . . Protection 3 | . . . 2 1 Artifact . | . . . . . Weapon 15 | 2 . 8 . 5 Energy Gun 6 | 1 . 5 . . Energy Cannon 3 | . . . . 3 Ballistic Gun 1 | 1 . . . . Ballistic Cannon 1 | . . 1 . . Launcher 2 | . . 1 . 1 Special Weapon . | . . . . . Impact Weapon . | . . . . . Slashing Weapon 2 | . . 1 . 1 Piercing Weapon . | . . . . . Special Melee Weapon . | . . . . . Unidentified Prototypes 3 | . 1 2 . . Parts Lost 20 | . . 9 . 11 Power 3 | . . 2 . 1 Propulsion 8 | . . 2 . 6 Utility 2 | . . 1 . 1 Weapon 7 | . . 4 . 3 Highest Loss Streak 7 | . . 7 . 7 To Critical Strikes . | . . . . . Average Backups 9 | 1 7 11 14 9 Power 1 | . 1 1 2 1 Propulsion 2 | . 3 5 4 . Utility 2 | . . 1 2 3 Weapon 3 | . 2 2 6 3 Tool/Special . | . . . . . Unused Backups 6 | . . 1 . 5 Power 1 | . . . . 1 Propulsion . | . . . . . Utility 2 | . . . . 2 Weapon 3 | . . 1 . 2 Tool/Special . | . . . . . Average Slot Usage (%) 86 | . 99 94 98 70 Engine 10 | . 14 9 9 8 Wheel 20 | . 28 21 27 14 Device 16 | . 13 21 18 15 Storage 10 | . 14 11 9 7 Protection 1 | . . . 7 2 Energy Gun 10 | . 14 15 18 3 Energy Cannon 5 | . . . . 13 Ballistic Gun 4 | . 14 3 . . Ballistic Cannon 1 | . . 4 . . Slashing Weapon 4 | . . 7 9 5 Peak Build Rating 36 | 7 20 33 36 36 Average Rating 22 | 5 8 26 35 29 On Entrance 18 | . 7 20 31 36 Avg Prop Armor Cover (%) . | . . . . . Naked Turns . | . . . . . Heaviest Build 43 | 14 29 36 43 43 Greatest Support 40 | 32 32 32 30 40 Greatest Overweight (x) 4 | . . 1 1 4 Average Overweight (x) . | . . . 1 1 Largest Inventory Capacity 15 | 8 15 15 15 15 Average Capacity 13 | 7 12 15 15 13 Most Carried 15 | 5 12 15 15 15 Average Carried 9 | 1 7 11 14 9 Final Capacity 15 | 8 15 15 15 5 Final Carried 15 | 5 12 15 15 5 Class Distribution -------------------- 52% | Mutant 29% | Scavenger-Mutant 17% | Gunner Dominant Class ---------------- Mutant | -10/Materials Scavenger-Mutant | -9/Materials Scavenger-Mutant | -8/Materials Mutant | -8/Garrison Resources | -11 -10 -9 -8 -8 ----------- Run | Yrd Mat Mat Mat Gar Matter Collected 1011 | 282 223 271 40 195 Remotely . | . . . . . Salvage Created 2055 | 131 456 520 322 626 Parts 148 | 7 34 46 21 40 Haulers Intercepted 5 | . 2 2 1 . Recyclers Shooed 2 | . . 2 . . Parts Field Recycled . | . . . . . Retrieved Matter . | . . . . . Parts Self-Destructed . | . . . . . Prevented . | . . . . . Parts Restored . | . . . . . Kills | -11 -10 -9 -8 -8 ------- Run | Yrd Mat Mat Mat Gar Combat Hostiles Destroyed 46 | . 6 15 6 19 Melee 9 | . . 2 3 4 Guns 8 | . 3 3 1 1 Cannons 7 | . . 1 . 6 AOE 22 | . 3 9 2 8 Classes Destroyed 14 | 2 3 6 . 3 Worker 1 | . . 1 . . Builder 2 | . . 2 . . Tunneler 4 | 2 1 1 . . Hauler 5 | . 2 2 1 . Recycler 1 | 1 . . . . Operator 1 | . . 1 . . Watcher 5 | . 2 3 . . Swarmer 20 | . . 11 2 7 Grunt 10 | . 6 1 3 . Brawler 1 | . . . . 1 Duelist 2 | . . 1 . 1 Sentry 6 | . . 2 1 3 Specialist 6 | . . . . 6 Programmer 1 | . . . . 1 Best Kill Streak 7 | 3 6 6 7 4 Combat Bots Only 6 | . 4 4 6 4 Max Kills in Single Turn 4 | 1 2 3 2 4 Gunslinging . | . . . . . Exploded 4 | . 2 2 2 4 Melee 1 | . . 1 1 1 Uniques/NPCs Destroyed . | . . . . . Combat | -11 -10 -9 -8 -8 -------- Run | Yrd Mat Mat Mat Gar Hostile Shots Fired 291 | . 25 54 17 195 Missed 98 | . 8 7 5 78 Hits 193 | . 17 47 12 117 Melee 5 | . . 5 . . Projectile 188 | . 17 42 12 117 Critical Strikes 2 | . . 2 . . Damage Taken 2591 | . 198 731 167 1495 Core 727 | . 11 214 18 484 Absorbed by Shields . | . . . . . Core Remaining (%) 77 | 100 95 38 . . Volleys Fired 110 | 12 37 15 4 42 Largest 3 | 1 2 3 2 3 Hottest 204 | 20 60 100 90 204 Shots Fired 199 | 12 73 31 8 75 Gun 136 | 12 73 24 8 19 Cannon 53 | . . 2 . 51 Launcher 10 | . . 5 . 5 Special . | . . . . . Kinetic 57 | 12 37 8 . . Thermal 53 | . . 2 . 51 Explosive 10 | . . 5 . 5 Electromagnetic 79 | . 36 16 8 19 Robot Hit Streak 20 | 8 10 10 8 20 Robot Miss Streak 5 | 2 5 2 1 4 Penetration Max . | . . . . . Secondary Targets . | . . . . . Shots Hit Robots 182 | 10 45 55 18 54 Core Hits 89 | 6 19 31 11 22 Critical Kills . | . . . . . Critical Parts Destroyed . | . . . . . Critical Strikes 7 | . . 6 1 . Corrupt 1 | . . 1 . . Sever 6 | . . 5 1 . Melee Attacks 66 | . . 39 11 16 Impact . | . . . . . Slashing 66 | . . 39 11 16 Piercing . | . . . . . Sneak Attacks 9 | . . 7 2 . Combat Hostiles . | . . . . . Follow-up Attacks . | . . . . . Damage Inflicted 5589 | 77 660 2345 731 1776 Guns 1140 | 77 508 184 161 210 Cannons 682 | . . 44 . 638 Explosions 1767 | . 152 680 202 733 Melee 2000 | . . 1437 368 195 Ramming . | . . . . . Kinetic 303 | 77 167 59 . . Thermal 1159 | . 152 56 202 749 Explosive 1264 | . . 642 . 622 Electromagnetic 863 | . 341 151 161 210 Impact . | . . . . . Slashing 2000 | . . 1437 368 195 Piercing . | . . . . . Highest Corruption 36 | . 2 . . 36 Average Corruption 14 | . 2 . . 19 Corruption Purged . | . . . . . Corruption Blocked . | . . . . . Effects 39 | . 5 . . 34 Message Errors 9 | . 2 . . 7 Matter Fused 7 | . 1 . . 6 Heat Flow Errors 2 | . . . . 2 Energy Discharges 7 | . 2 . . 5 Parts Rejected 2 | . . . . 2 Data Loss (minor) 7 | . . . . 7 Data Loss (major) 1 | . . . . 1 Misfires 1 | . . . . 1 Alerts 1 | . . . . 1 Weapon Failures 2 | . . . . 2 Overload Shots . | . . . . . Overflow Damage 233 | . . 174 47 12 Projectiles 2 | . . . . 2 Explosions 46 | . . 46 . . Melee 185 | . . 128 47 10 Knockbacks . | . . . . . Impact . | . . . . . Kinetic . | . . . . . Secondary . | . . . . . Self-Inflicted Damage 200 | . . 79 . 121 Shots 5 | . . 2 . 3 Rammed . | . . . . . Targets Rammed . | . . . . . Kicked . | . . . . . Crushed . | . . . . . Highest Temperature 305 | . 91 239 13 305 Average Temperature 63 | . 31 56 7 101 Received Heat Transfer 487 | . 120 183 81 103 Siege Activations . | . . . . . Martial Activations . | . . . . . Shielding Activations . | . . . . . Robots Disrupted . | . . . . . Combat Hostiles . | . . . . . Robots Corrupted . | . . . . . Combat Hostiles . | . . . . . Parts Fried . | . . . . . Impact Corruptions . | . . . . . Robots Melted . | . . . . . Combat Hostiles . | . . . . . Parts Melted 1 | . . . . 1 Heat Transferred 1634 | . 100 87 200 1247 Parts Sabotaged . | . . . . . Parts Stolen . | . . . . . Parts Stripped . | . . . . . Power Chain Reactions 8 | . 2 1 2 3 Alert | -11 -10 -9 -8 -8 ------- Run | Yrd Mat Mat Mat Gar Maximum Alert Level 2 | . . 1 . 2 Low Security (%) 56 | 100 100 61 100 16 Level 1 30 | . . 38 . 51 Level 2 12 | . . . . 31 Level 3 . | . . . . . Level 4 . | . . . . . Level 5 . | . . . . . High Security . | . . . . . Max Security . | . . . . . Peak Influence 499 | 10 110 266 191 499 Initial 124 | . 3 13 69 124 Average 192 | 1 45 169 122 322 Influence Increases 1386 | 15 222 482 182 485 Destroy 0b10 Robot/C 940 | . 120 300 120 400 Destroy 0b10 Robot/NC 100 | 15 25 55 5 . Destroy Leader 142 | . 28 72 32 10 Successful Hack 20 | . . . 6 14 Disable Machine 75 | . 45 30 . . Destroy Structure 79 | . 4 25 4 46 Lose Combat Pursuer 30 | . . . 15 15 Influence Decreases 907 | 10 195 348 157 197 Entered New Map 185 | . 2 19 97 67 Time Decay 502 | 10 193 239 60 . Lost Part 200 | . . 90 . 110 Lost Ally 20 | . . . . 20 Squads Dispatched 3 | . . 2 1 . Investigation . | . . . . . Extermination . | . . . . . Reinforcement 2 | . . 2 . . Assault . | . . . . . Garrison 1 | . . . 1 . Intercept . | . . . . . Searches Triggered . | . . . . . Construction Impeded . | . . . . . Haulers Reinforced . | . . . . . Active Scanning Responses . | . . . . . Cargo Convoy Interrupts . | . . . . . Stealth | -11 -10 -9 -8 -8 --------- Run | Yrd Mat Mat Mat Gar Distress Signals 1 | . . 1 . . Communications Jammed . | . . . . . Distress Signals . | . . . . . Times Spotted 61 | . 11 21 8 21 Peak Tracking Total 4 | . 2 4 4 4 Tactical Retreats 2 | . . . 1 1 Traps | -11 -10 -9 -8 -8 ------- Run | Yrd Mat Mat Mat Gar Traps Triggered 4 | . 1 . . 3 Indirectly . | . . . . . Trap Hack Attempts . | . . . . . Triggered . | . . . . . Disarmed . | . . . . . Reprogrammed . | . . . . . Reused . | . . . . . Traps Extracted . | . . . . . Installed . | . . . . . Triggered . | . . . . . Machines | -11 -10 -9 -8 -8 ---------- Run | Yrd Mat Mat Mat Gar Machines Disabled 6 | . 3 2 . 1 Max in Single Turn 2 | . 1 2 . 1 Machines Repaired . | . . . . . Machines Dismantled . | . . . . . Machines Sabotaged . | . . . . . Overloaded Fab Kills . | . . . . . Hacking | -11 -10 -9 -8 -8 --------- Run | Yrd Mat Mat Mat Gar Machines Accessed 9 | . 2 2 2 3 Terminals 6 | . 1 1 1 3 Fabricators . | . . . . . Repair Stations . | . . . . . Recycling Units 1 | . 1 . . . Scanalyzers 1 | . . 1 . . Garrison Access 1 | . . . 1 . Total Hacks 20 | . 5 5 6 4 Successful 9 | . 2 2 3 2 Failed 10 | . 3 3 2 2 Catastrophic 1 | . . . 1 . Database Lockouts 1 | . . . 1 . Manual 8 | . 1 3 4 . Terminals 16 | . 4 3 5 4 Fabricators . | . . . . . Repair Stations . | . . . . . Recycling Units 1 | . 1 . . . Scanalyzers 2 | . . 2 . . Garrison Access 1 | . . . 1 . Terminal Hacks 6 | . 1 1 2 2 Prototype ID Bank 2 | . . 1 1 . Open Door 1 | . . . . 1 Emergency Access Points 1 | . . . . 1 Zone Layout 2 | . 1 . 1 . Fabricator Hacks . | . . . . . Repair Station Hacks . | . . . . . Recycling Unit Hacks 1 | . 1 . . . Report Inventory 1 | . 1 . . . Scanalyzer 1 | . . 1 . . Retrieve Study 1 | . . 1 . . Garrison Access Hacks 1 | . . . 1 . Unlock Access 1 | . . . 1 . Unauthorized Hacks . | . . . . . Terminals . | . . . . . Fabricators . | . . . . . Repair Stations . | . . . . . Recycling Units . | . . . . . Scanalyzers . | . . . . . Garrison Access . | . . . . . Data Cores Recovered . | . . . . . Used . | . . . . . Hacking Detections 7 | . 1 2 1 3 Full Trace Events . | . . . . . Feedback Events . | . . . . . Feedback Blocked . | . . . . . Robot Schematics Acquired . | . . . . . Robots Built . | . . . . . Authchips . | . . . . . Time . | . . . . . Total Robot Build Rating . | . . . . . Part Schematics Acquired . | . . . . . Parts Built . | . . . . . Authchips . | . . . . . Time . | . . . . . Total Part Build Rating . | . . . . . Part Studies Acquired 1 | . . 1 . . Parts Repaired . | . . . . . Time . | . . . . . Parts Recycled . | . . . . . Recycled Matter . | . . . . . Retrieved Matter . | . . . . . Retrieved Components . | . . . . . Parts Scanalyzed . | . . . . . Part Schematics Acquired . | . . . . . Parts Damaged . | . . . . . Bothacking | -11 -10 -9 -8 -8 ------------ Run | Yrd Mat Mat Mat Gar Used RIF Installer . | . . . . . Robots Hacked . | . . . . . Non-combat . | . . . . . Combat . | . . . . . Robot Hacks Applied . | . . . . . Relay Couplers Released . | . . . . . Fabnet Peak Effective % . | . . . . . Robots Rewired . | . . . . . Allies Hacked . | . . . . . Hacks Repelled . | . . . . . Allies | -11 -10 -9 -8 -8 -------- Run | Yrd Mat Mat Mat Gar Total Allies 1 | . . . . 1 Largest Group 1 | . . . . 1 Highest-Rated Group 31 | . . . . 31 Highest-Rated Ally 31 | . . . . 31 Total Orders . | . . . . . Ally Attacks 2 | . . . . 2 Total Damage 20 | . . . . 20 Kills 1 | . . . . 1 Allies Corrupted . | . . . . . Allies Melted . | . . . . . X0-1V1 Amusement Gains 23 | . 3 10 . 10 Average Entertainment 5 | . 2 8 5 4 Good Acts 3 | . 1 2 . . Bad Acts 22 | . . 4 . 18 Intel | -11 -10 -9 -8 -8 ------- Run | Yrd Mat Mat Mat Gar Active Infowar (turns) 615 | 10 448 157 . . Seismic 615 | 10 448 157 . . Robot Analysis Total . | . . . . . Derelict Logs Recovered . | . . . . . Drone Launches . | . . . . . Drone Recoveries . | . . . . . Exploration | -11 -10 -9 -8 -8 ------------- Run | Yrd Mat Mat Mat Gar Turns Passed 2061 | 79 485 536 134 827 Spaces Moved 1259 | 41 324 341 73 480 Core 76 | 1 . . . 75 Treads . | . . . . . Legs . | . . . . . Wheels 1183 | 40 324 341 73 405 Hover . | . . . . . Flight . | . . . . . Fastest Speed 50 | 50 100 95 95 50 Average Speed 105 | 98 100 96 95 117 Slowest Speed 250 | 100 100 115 95 250 Overloaded Moves . | . . . . . Propulsion Burnouts . | . . . . . Robots Hopped . | . . . . . Potential Cave-ins . | . . . . . Cave-ins Triggered . | . . . . . Exploration Rate (%) 31 | 4 52 36 10 57 Regions Visited 4 Branch Regions . Pre-discovered Areas . | . . . . . Known Exits Taken 1 | . . . 1 . Unknown Exits Taken 3 | 1 1 1 . . Scrap Searched . | . . . . . Spaces Dug 1 | . . 1 . . Terrain Destroyed 84 | . 4 22 4 54 Melee 1 | . . 1 . . Projectile . | . . . . . AOE 83 | . 4 21 4 54 Terrain Rammed . | . . . . . Walls Destroyed . | . . . . . Machines Disabled . | . . . . . Actions | -11 -10 -9 -8 -8 --------- Run | Yrd Mat Mat Mat Gar Total 1707 | 66 419 459 113 650 Wait 150 | 2 47 16 17 68 Move 1254 | 40 323 340 73 478 Hop . | . . . . . Pick Up 30 | 5 6 14 2 3 Fast Attach 17 | 7 1 8 1 . Attach 22 | . . 9 2 11 Detach 7 | . 1 2 1 3 Swap 16 | . 2 8 1 5 Drop 19 | . 2 8 1 8 Fire 110 | 12 37 15 4 42 Melee 66 | . . 39 11 16 Ram . | . . . . . Kick . | . . . . . Crush . | . . . . . Escape Stasis 16 | . . . . 16 Rewire . | . . . . . Trap . | . . . . . Miscellaneous . | . . . . . Route ------- -11/Scrapyard -10/Materials -9/Materials -8/Materials -8/Garrison (discovered 2 exits: [*Sto x2]) History --------- Turn | Location | Event 7 | -11/Scrapyard | Discovered new exit (range 15) 80 | -11/Scrapyard | Entered Materials 308 | -10/Materials | Build established: Mutant 472 | -10/Materials | Discovered new exit (range 7) 528 | -10/Materials | Prayed at D.C.S.S. Altar Unit 544 | -10/Materials | X0-1V1 activates XOMVISION 565 | -10/Materials | Entered another Materials area 565 | -9/Materials | Evolved 2 slots: Utility x1, Weapon x1 628 | -9/Materials | Melee accuracy permanently improved by X0-1V1 (+5%; -50 max core) 784 | -9/Materials | Lost 7 parts (1p2n1u3w) 840 | -9/Materials | Core integrity fell below 50% 1056 | -9/Materials | Discovered new exit (range 8) 1075 | -9/Materials | Build established: Scavenger-Mutant 1101 | -9/Materials | Entered another Materials area 1101 | -8/Materials | Evolved 2 slots: Propulsion x1, Utility x1 1124 | -8/Materials | Central database locked down 1147 | -8/Materials | Garrison activated, responded to threat 1235 | -8/Materials | Identified exit to Garrison 1235 | -8/Materials | Entered Garrison 1261 | -8/Garrison | Triggered checkpoint 1291 | -8/Garrison | X0-1V1 mutated your Utility slot to Propulsion slot 1321 | -8/Garrison | X0-1V1 sent hostile X-57 Shotgunner (x3) 1352 | -8/Garrison | X0-1V1 caused items to flee you 1353 | -8/Garrison | System corruption reached 10% 1467 | -8/Garrison | Lost 7 parts (1p4n2w) 1555 | -8/Garrison | Triggered checkpoint 1573 | -8/Garrison | Items stopped fleeing you 1671 | -8/Garrison | Discovered new exit (range 10) 1680 | -8/Garrison | X0-1V1 sent hostile Y-45 Defender (x2) 1752 | -8/Garrison | Attempted to access garrison exit controls, blocked by remote lockdown 1791 | -8/Garrison | X0-1V1 sent hostile X-57 Shotgunner (x3) 1794 | -8/Garrison | Core integrity fell below 50% 1843 | -8/Garrison | Triggered checkpoint 1923 | -8/Garrison | Discovered new exit (range 10) 1952 | -8/Garrison | Rescued a captive Derelict 1995 | -8/Garrison | Attempted to access garrison exit controls, blocked by remote lockdown 2053 | -8/Garrison | System corruption reached 30% 2055 | -8/Garrison | Triggered checkpoint 2055 | -8/Garrison | X0-1V1 sent you into danger 2060 | -8/Garrison | Core integrity fell below 20% 2062 | -8/Garrison | Destroyed by P-60 Hacker with Gatling Laser Last Messages --------------- sight range) 02041_ X0-1V1: "Did you know you're leaking matter?" (-150 matter capacity) 02052_ X0-1V1 brushes you with a corrupting influence (+17 system corruption). 02055_ X0-1V1: "Enjoy the ride!" 02055_ Machine disabled. 02056_ P-60 Hacker destroyed. 02057_ X0-1V1 feels inspired! P-60 Hacker Remote Datajack replaced by Plasma Flamer. P-60 Hacker Shock Rifle replaced by Prototype Energy Gun. P-60 Hacker Shock Rifle replaced by Gatling Laser. 02058_ X0-1V1: "Dakka mode, ENGAGE!" (-6% melee accuracy) 02059_ System corrupted: IFF burst signal emitted. 02059_ Triggered Fusion Bomb Trap. 02059_ An explosion rips through the floor. 02059_ X0-1V1 is mildly amused. 02059_ Machine disabled. 02062_ RIF Installer disabled. 02062_ X0-1V1 guffaws! Map ----- +----------------------------------------------------+ | +????????????????????????????????? | | ?????????????????????????????????? | | ?????????????????????????????????? | | ?????????????????????????????????? | | ?????????????????????????????????? | | ?????????????????????????????????? | | ?????????????????????????????????? | | ##########################???????? | | [ %=%% "#???????? | | #########"""### #####"T"#???????? | | #?????????????# #???#####???????? | | #?????????+???# ###?????????????? | | %#?????????????# #"#?????????????? | | ##?????????????# "#?????????????? | | +??????????????# "#?????????????? | | #??????????????# "#?????????????? | | #??????????????# #"#?????????????? | | #######??##+##?# ###???##?##?????? | | " ##?# #?# #??#### # #?????? | | # """""### ### #?## " #?????? | | + *[% #?????? | | " "#"###########?## =! #??"??? | | " #####???????????# =| #? "??? | | ####????????????????# # "#?? | | #???????????????????# #?? | | #???????????????????# @ #?? | | #???????????????????# p "#?? | | ##############??????## " "#?? | | #???????#""###""""??? | | #???????###???####??? | | ########## #???????????????????? | | ?????????# #???????????????????? | | ?????????#####???????????????????? | | ?????????????????????????????????? | | ?????????????????????????????????? | | ?????????????????????????????????? | | ?????????????????????????????????? | | ?????????????????????????????????? | | ?????????????????????????????????? | | ?????????????????????????????????? | | ?????????????????????????????????? | | ?????????????????????????????????? | | ?????????????????????????????????? | | ?????????????????????????????????? | | ?????????????????????????????????? | | ?????????????????????????????????? | | ?????????????????????????????????? | | ?????????????????????????????????? | | ?????????????????????????????????? | | ?????????????????????????????????? | +----------------------------------------------------+ Best States ------------- Heat Dissipation 45 Energy Generation 14 Energy Capacity 280 Matter Stores 300 Matter Capacity 300 Sight Range 16 Terrain Scan Density 10 Armor Coverage 225 Evasion (%) 50 Item Schematics ----------------- None Robot Schematics ------------------ None Fabricated ------------ Nothing Repaired ---------- Nothing Studied --------- Katana | -9/Materials | Hacked Alien Tech Used ----------------- None Achievements -------------- None Challenges ------------ None Game ------ Seed GravmagLatentSink Manual? 0 Play Time 00:19:57 Cumulative 569.5 hours Start 2026.09.01 @ 07:00:30 End 2026.09.04 @ 02:25:18 Sessions 2 Manual Loads 0 Difficulty Rogue Special Mode None Game No. 386 Rogue 386 Adventurer 0 Explorer 0 Win Type - Total 57 Types 49/0/6/2/0/0/0/0/0/0 Lore% 83 Gallery% 77 Achievement% 56 Wizard Run 0 Options --------- Layout 0 ASCII 0 Keyboard 1 Movement Numpad Keybinds 0 Fullscreen 2 Font 24/Terminus Map View 76x50 Zoom Use 0% Tactical HUD 1 Map Filters NONE Filters NONE Steam 1 RUN: 9fe4819d-bb74-43af-ae2e-f137824b648a